bitfinex-derivatives/quotes_SOLF0:USTF0_20251024
["timestamp","ask_amount","ask_price","bid_price","bid_amount"]
[1761286154357,8.16071455,192.79,192.77,43.32]
[1761286154561,3.89677552,192.78,192.77,43.32]
[1761286154759,3.89677552,192.79,192.77,43.32]
[1761286154960,3.89677552,192.78,192.76,2.79]
[1761286155160,4.26476054,192.79,192.77,43.32]
[1761286155362,3.90280435,192.78,192.77,43.32]
[1761286156151,2.74,192.77,192.7,2.79]
[1761286156356,8.16756489,192.76,192.7,2.79]
[1761286156556,8.16756489,192.75,192.7,2.79]
[1761286156855,3.90280435,192.74,192.7,2.79]
[1761286157057,4.29822829,192.76,192.7,2.79]
[1761286157256,8.20094195,192.75,192.7,2.79]
[1761286157561,8.20094195,192.75,192.69,43.3]
[1761286157562,3.90271366,192.74,192.72,2.79]
[1761286157764,3.90271366,192.73,192.72,2.79]
[1761286157958,8.20061702,192.75,192.72,2.79]
[1761286158156,3.90271366,192.74,192.72,2.79]
[1761286158357,3.90271366,192.73,192.72,2.79]
[1761286158656,7.2187674,192.77,192.72,2.79]
[1761286158657,8.20058398,192.75,192.72,2.79]
[1761286158962,3.90271366,192.74,192.73,43.4]
[1761286160350,3.90271366,192.74,192.73,43.38]
[1761286160966,8.20025164,192.74,192.73,43.38]
[1761286161459,3.90271366,192.74,192.73,43.38]
[1761286161962,8.20025164,192.74,192.73,43.38]
[1761286162159,3.90271366,192.74,192.73,43.38]
[1761286162561,8.20025164,192.74,192.73,43.38]
[1761286162754,3.90271366,192.74,192.73,43.38]
[1761286163255,3.90271366,192.74,192.73,46.17]
[1761286163658,2.74,192.73,192.67,2.79]
[1761286163961,2.74,192.73,192.52,423.3467]
[1761286163962,3.90271366,192.72,192.69,2.79]
[1761286164157,6.64271366,192.71,192.7,43.38]
[1761286164364,2.74,192.7,192.62,2.79]
[1761286164568,8.20025164,192.69,192.62,2.79]
[1761286164868,3.90271366,192.68,192.62,2.79]
[1761286165066,3.90271366,192.69,192.64,2.79]
[1761286165364,7.54942708,192.77,192.68,2.79]
[1761286165569,12.66929724,192.76,192.7,2.79]
[1761286165768,8.1940118,192.75,192.7,2.79]
[1761286166074,3.89965522,192.74,192.7,2.79]
[1761286166257,4.2944998,192.76,192.7,2.79]
[1761286166458,6.63958402,192.75,192.7,2.79]
[1761286166667,3.89958402,192.74,192.7,2.79]
[1761286166866,2.74,192.75,192.7,2.79]
[1761286167070,3.89958622,192.74,192.7,2.79]
[1761286167369,2.74,192.75,192.7,2.79]
[1761286167567,3.89915217,192.74,192.7,2.79]
[1761286167783,2.74,192.75,192.7,2.79]
[1761286167974,3.8993662,192.74,192.7,2.79]
[1761286168267,2.74,192.75,192.7,2.79]
[1761286168569,3.89912077,192.74,192.7,2.79]
[1761286168772,7.0344998,192.75,192.7,2.79]
[1761286168773,3.95287383,192.73,192.7,2.79]
[1761286169068,2.74,192.75,192.7,2.79]
[1761286169272,3.95274305,192.74,192.7,2.79]
[1761286169467,3.95274305,192.73,192.7,2.79]
[1761286169664,2.74,192.75,192.7,2.79]
[1761286169883,3.95268217,192.74,192.7,2.79]
[1761286170168,3.95268217,192.73,192.7,2.79]
[1761286170365,2.74,192.75,192.7,2.79]
[1761286170666,3.95282318,192.74,192.7,2.79]
[1761286170868,3.95282318,192.73,192.7,2.79]
[1761286171065,2.74,192.75,192.7,2.79]
[1761286171274,2.74,192.73,192.7,2.79]
[1761286171470,2.74,192.73,192.69,2.6]
[1761286171974,3.95282259,192.72,192.69,2.6]
[1761286172668,6.69282259,192.72,192.69,2.6]
[1761286172872,2.74,192.72,192.69,2.6]
[1761286173362,3.95309097,192.74,192.7,43.38]
[1761286173567,3.95309097,192.73,192.71,2.6]
[1761286173868,3.95309097,192.74,192.72,2.6]
[1761286174176,3.95309097,192.73,192.72,2.6]
[1761286175571,8.68952669,192.75,192.72,2.6]
[1761286175781,3.95309097,192.74,192.73,2.6]
[1761286175962,3.95471733,192.76,192.74,2.6]
[1761286176160,4.80942708,192.81,192.74,2.6]
[1761286176161,7.47705342,192.77,192.74,2.6]
[1761286176373,3.95490605,192.76,192.74,2.6]
[1761286176574,2.74,192.77,192.74,2.6]
[1761286176774,3.95487573,192.76,192.74,45.98]
[1761286176973,2.74,192.77,192.74,45.98]
[1761286177277,3.95774824,192.76,192.74,45.98]
[1761286177477,2.74,192.77,192.74,2.6]
[1761286177775,3.95735688,192.76,192.74,2.6]
[1761286177976,4.74012047,192.77,192.74,2.6]
[1761286178180,3.95720621,192.76,192.74,2.6]
[1761286178378,4.80767213,192.8,192.74,2.6]
[1761286178379,7.47997751,192.77,192.74,2.6]
[1761286178573,3.95723774,192.76,192.74,2.6]
[1761286178772,2.74,192.77,192.74,2.6]
[1761286178978,3.95701898,192.76,192.74,2.6]
[1761286179280,2.74,192.77,192.74,2.6]
[1761286179481,3.95684276,192.76,192.74,2.6]
[1761286179779,2.74,192.77,192.74,2.6]
[1761286179984,2.74,192.77,192.71,2.36730255]
[1761286179985,8.69447927,192.76,192.71,2.36730255]
[1761286180273,8.69447927,192.75,192.73,2.6]
[1761286180478,2.74,192.78,192.73,2.6]
[1761286180677,2.74,192.76,192.75,1.51513639]
[1761286180975,15.73168223,192.76,192.75,1.51513639]
[1761286181378,11.43441243,192.76,192.75,1.51513639]
[1761286182582,3.95588815,192.76,192.75,4.11513639]
[1761286182973,3.95588815,192.76,192.75,1.51513639]
[1761286183483,2.74,192.83,192.77,2.6]
[1761286183678,2.74,192.83,192.82,1.51513639]
[1761286185275,7.54767213,192.88,192.83,2.6]
[1761286185474,2.74,192.86,192.85,1.51513639]
[1761286185878,4.29265046,192.86,192.85,1.51513639]
[1761286186081,2.74,192.87,192.83,2.6]
[1761286186279,7.03265046,192.86,192.83,2.6]
[1761286186478,2.74,192.86,192.83,2.6]
[1761286186777,2.74,192.86,192.8,4.11513639]
[1761286186975,7.03265046,192.86,192.8,4.11513639]
[1761286187174,2.74,192.86,192.8,4.11513639]
[1761286188685,2.74,192.86,192.81,2.6]
[1761286189671,4.29265046,192.89,192.82,1.51513639]
[1761286189871,2.74,192.9,192.84,4.11513639]
[1761286190587,4.29265046,192.92,192.85,2.6]
[1761286190886,8.54778685,192.93,192.85,2.6]
[1761286191378,4.25513639,192.93,192.85,2.6]
[1761286192488,4.25513639,192.93,192.86,2.6]
[1761286192681,4.25513639,192.93,192.85,32.36]
[1761286192682,1.51513639,192.89,192.81,2.6]
[1761286192889,2.74,192.88,192.81,2.6]
[1761286193093,1.51513639,192.87,192.81,2.6]
[1761286193675,4.25513639,192.87,192.81,2.6]
[1761286193887,2.74,192.87,192.81,2.6]
[1761286197084,2.74,192.85,192.81,2.6]
[1761286197283,2.74,192.85,192.78,2.6]
[1761286201593,1.51513639,192.86,192.78,2.6]
[1761286203594,2.63,192.87,192.78,2.6]
[1761286203890,1.51513639,192.86,192.78,2.6]
[1761286207085,4.14513639,192.87,192.79,2.88]
[1761286208690,2.63,192.87,192.79,2.88]
[1761286210888,2.63,192.87,192.8,2.88]
[1761286212293,2.63,192.86,192.8,2.88]
[1761286212597,2.63,192.85,192.8,2.88]
[1761286213192,4.78981814,192.89,192.68,2.88]
[1761286213398,8.69160056,192.9,192.68,2.88]
[1761286213399,1.51513639,192.77,192.68,2.88]
[1761286213592,15.69135532,192.82,192.75,2.88]
[1761286213802,13.06135532,192.81,192.75,2.88]
[1761286213992,2.63,192.81,192.75,2.88]
[1761286214192,2.63,192.83,192.75,4.39513639]
[1761286214698,2.63,192.82,192.75,4.39513639]
[1761286214899,11.32148588,192.82,192.75,4.39513639]
[1761286215100,2.63,192.82,192.75,4.39513639]
[1761286215301,2.63,192.82,192.78,2.88]
[1761286215526,13.06965825,192.85,192.79,1.51513639]
[1761286215701,2.63,192.87,192.83,4.39513639]
[1761286215902,15.72256117,192.9,192.84,2.88]
[1761286216093,15.72256117,192.89,192.86,1.51513639]
[1761286216298,13.09256117,192.88,192.86,1.51513639]
[1761286216502,4.79863793,192.87,192.86,1.51513639]
[1761286217102,2.63,192.88,192.86,1.51513639]
[1761286217905,15.72699373,192.88,192.86,1.51513639]
[1761286218104,4.79863793,192.87,192.86,1.51513639]
[1761286218300,2.63,192.88,192.86,1.51513639]
[1761286218502,2.63,192.88,192.84,4.39513639]
[1761286219002,15.73164319,192.88,192.84,4.39513639]
[1761286219202,8.70603903,192.87,192.84,4.39513639]
[1761286219403,3.9074011,192.87,192.84,4.39513639]
[1761286219603,6.5374011,192.87,192.84,1.51513639]
[1761286219805,2.63,192.87,192.84,1.51513639]
[1761286220202,2.63,192.86,192.84,1.51513639]
[1761286220405,2.63,192.86,192.82,1.51513639]
[1761286220601,2.63,192.85,192.82,1.51513639]
[1761286220802,7.435915,192.85,192.82,1.51513639]
[1761286221003,2.63,192.9,192.82,1.51513639]
[1761286221202,2.63,192.88,192.81,4.39513639]
[1761286221402,3.90916815,192.87,192.81,4.39513639]
[1761286221604,13.11742985,192.87,192.81,4.39513639]
[1761286221803,8.30969132,192.86,192.82,2.88]
[1761286222005,2.63,192.88,192.82,2.88]
[1761286222199,6.53982725,192.87,192.82,2.88]
[1761286222405,3.90982725,192.87,192.82,2.88]
[1761286223009,12.86665233,192.88,192.82,2.88]
[1761286223311,10.94111586,192.87,192.82,2.88]
[1761286223611,8.31111586,192.86,192.82,2.88]
[1761286223812,3.90982725,192.86,192.82,2.88]
[1761286224015,6.53982725,192.86,192.82,2.88]
[1761286224212,3.91258796,192.85,192.82,2.88]
[1761286224512,2.63,192.86,192.82,2.88]
[1761286224811,10.94589464,192.86,192.82,2.88]
[1761286225002,3.91258796,192.85,192.82,2.88]
[1761286225814,10.94707515,192.86,192.82,2.88]
[1761286226114,2.63,192.86,192.82,2.88]
[1761286226308,3.91454526,192.85,192.78,2.88]
[1761286226507,6.54454526,192.85,192.78,2.88]
[1761286227215,7.04078241,192.85,192.78,2.88]
[1761286227512,7.04096234,192.85,192.78,2.88]
[1761286228214,3.92080338,192.84,192.78,2.88]
[1761286228615,3.92080338,192.83,192.78,2.88]
[1761286228918,3.92080338,192.82,192.78,2.88]
[1761286229109,3.92080338,192.81,192.78,2.88]
[1761286229412,4.41377008,192.84,192.78,2.88]
[1761286229717,4.11759486,192.83,192.78,2.88]
[1761286229916,4.11759486,192.82,192.78,2.88]
[1761286230117,4.11759486,192.81,192.78,2.88]
[1761286230313,4.41352605,192.84,192.78,2.88]
[1761286230518,4.11719772,192.83,192.78,2.88]
[1761286230812,4.11719772,192.82,192.78,2.88]
[1761286231012,4.11719772,192.81,192.78,2.88]
[1761286231214,4.41366182,192.84,192.78,2.88]
[1761286231413,6.96718373,192.83,192.78,2.88]
[1761286231612,4.11718373,192.82,192.78,2.88]
[1761286231826,4.11718373,192.81,192.78,2.88]
[1761286232012,2.85,192.83,192.78,2.88]
[1761286232213,4.11718083,192.82,192.78,2.88]
[1761286232418,4.11718083,192.81,192.78,2.88]
[1761286232612,2.85,192.83,192.78,2.88]
[1761286232811,4.11716286,192.82,192.78,2.88]
[1761286233016,4.11716286,192.81,192.78,2.88]
[1761286233314,2.85,192.83,192.78,2.88]
[1761286233515,4.11698522,192.82,192.78,2.88]
[1761286233715,4.11698522,192.81,192.78,2.88]
[1761286233912,2.85,192.83,192.78,2.88]
[1761286234116,4.11698522,192.82,192.78,2.88]
[1761286234316,4.11698522,192.81,192.78,2.88]
[1761286234517,2.85,192.83,192.78,2.88]
[1761286234717,4.11697015,192.82,192.78,2.88]
[1761286234914,4.11697015,192.81,192.78,2.88]
[1761286235110,2.85,192.83,192.78,2.88]
[1761286235307,4.11547598,192.82,192.78,2.88]
[1761286235507,9.13142817,192.81,192.78,2.88]
[1761286235707,2.85,192.83,192.78,2.88]
[1761286235920,9.12879479,192.82,192.78,2.88]
[1761286236120,9.12879479,192.81,192.78,2.88]
[1761286236322,2.85,192.83,192.78,2.88]
[1761286236515,9.12995779,192.82,192.78,2.88]
[1761286236714,9.12995779,192.81,192.78,2.88]
[1761286236924,2.85,192.83,192.78,2.88]
[1761286237124,9.13110248,192.82,192.78,2.88]
[1761286237330,9.13110248,192.81,192.78,2.88]
[1761286237525,5.01609973,192.8,192.78,2.88]
[1761286237715,4.41304433,192.84,192.78,2.88]
[1761286237915,13.55182769,192.83,192.78,2.88]
[1761286238220,7.63259865,192.87,192.79,2.8]
[1761286238421,13.42371685,192.86,192.79,2.8]
[1761286238620,13.42371685,192.85,192.8,2.8]
[1761286238818,9.00826721,192.84,192.8,2.8]
[1761286239022,4.11931865,192.83,192.8,2.8]
[1761286239221,9.14773504,192.87,192.8,2.8]
[1761286239420,9.00835088,192.86,192.8,2.8]
[1761286239721,9.00835088,192.85,192.8,2.8]
[1761286239925,9.00835088,192.84,192.8,2.8]
[1761286240130,4.11935664,192.83,192.8,2.8]
[1761286240316,9.14773504,192.87,192.8,2.8]
[1761286240634,2.85,192.84,192.8,2.8]
[1761286240827,9.00792304,192.83,192.8,2.8]
[1761286241129,4.11916273,192.82,192.8,2.8]
[1761286241323,2.85,192.84,192.8,2.8]
[1761286241524,9.00762182,192.83,192.8,2.8]
[1761286241722,4.11897686,192.82,192.8,2.8]
[1761286242028,2.85,192.84,192.8,2.8]
[1761286242227,9.00761536,192.83,192.8,2.8]
[1761286242527,4.11897361,192.82,192.8,2.8]
[1761286242729,2.85,192.84,192.8,2.8]
[1761286242925,9.00770229,192.83,192.8,2.8]
[1761286243129,4.11901423,192.82,192.8,2.8]
[1761286243330,2.85,192.84,192.8,2.8]
[1761286243629,11.85755543,192.83,192.79,2.8]
[1761286243926,4.11894264,192.82,192.79,2.8]
[1761286244130,2.85,192.83,192.79,2.8]
[1761286244427,4.118986,192.82,192.79,2.8]
[1761286244630,2.85,192.82,192.79,2.8]
[1761286247730,4.78259865,192.86,192.79,2.8]
[1761286247930,11.8571873,192.85,192.79,2.8]
[1761286248226,11.8571873,192.84,192.79,2.8]
[1761286248422,4.78259865,192.86,192.79,2.8]
[1761286248423,11.8571873,192.83,192.79,2.8]
[1761286248640,9.0071873,192.82,192.79,2.8]
[1761286248830,2.85,192.83,192.79,2.8]
[1761286249130,9.00722417,192.82,192.79,2.8]
[1761286249330,2.85,192.83,192.79,2.8]
[1761286249624,4.11874242,192.82,192.79,2.8]
[1761286249831,2.85,192.86,192.79,2.8]
[1761286250030,11.85675507,192.85,192.79,2.8]
[1761286250229,11.85675507,192.84,192.79,2.8]
[1761286250430,9.00675507,192.83,192.79,2.8]
[1761286250636,4.11854735,192.82,192.79,2.8]
[1761286250838,2.85,192.84,192.79,2.8]
[1761286251034,9.00564881,192.83,192.79,2.8]
[1761286251234,4.1180334,192.82,192.79,2.8]
[1761286251434,2.85,192.84,192.79,2.8]
[1761286251737,11.85529766,192.83,192.79,2.8]
[1761286251927,4.11786507,192.82,192.79,2.8]
[1761286252128,2.85,192.83,192.79,2.8]
[1761286252325,11.85529306,192.82,192.79,2.8]
[1761286252532,6.96762926,192.81,192.79,2.8]
[1761286252730,2.85,192.8,192.77,46.0]
[1761286253539,2.85,192.84,192.76,2.8]
[1761286253834,11.85415382,192.83,192.78,2.8]
[1761286254044,2.85,192.86,192.78,2.8]
[1761286254243,11.85443239,192.85,192.78,2.8]
[1761286254441,9.00443239,192.84,192.78,2.8]
[1761286254636,9.00443239,192.83,192.78,2.8]
[1761286254940,2.85,192.85,192.78,2.8]
[1761286255243,11.85463104,192.84,192.78,2.8]
[1761286255441,11.85463104,192.83,192.78,2.8]
[1761286255644,2.85,192.83,192.78,2.8]
[1761286257443,7.63259865,192.88,192.78,2.8]
[1761286257641,9.00493194,192.87,192.78,2.8]
[1761286257840,9.00493194,192.86,192.79,2.8]
[1761286258039,9.00493194,192.85,192.8,43.2]
[1761286258344,4.1177378,192.84,192.81,2.8]
[1761286258540,7.63259865,192.88,192.81,2.8]
[1761286258734,9.00148432,192.87,192.81,2.8]
[1761286258936,4.88498708,192.86,192.81,2.8]
[1761286259143,4.88498708,192.85,192.81,2.8]
[1761286259343,4.88498708,192.84,192.81,2.8]
[1761286259639,2.81,192.86,192.81,2.8]
[1761286259842,4.88763916,192.85,192.81,2.8]
[1761286260043,4.88763916,192.84,192.81,2.8]
[1761286260235,3.86399632,192.87,192.81,2.8]
[1761286260438,8.75459064,192.86,192.81,2.8]
[1761286260736,4.89059432,192.85,192.81,2.8]
[1761286260938,4.89059432,192.84,192.81,2.8]
[1761286261136,3.86641528,192.87,192.81,2.8]
[1761286261445,4.666,192.84,192.81,2.8]
[1761286261644,4.666,192.84,192.78,2.3661808]
[1761286261645,4.666,192.84,192.83,2.76]
[1761286261848,9.55632704,192.84,192.83,2.76]
[1761286262044,4.89032704,192.84,192.83,2.76]
[1761286263139,2.3661808,192.91,192.83,2.76]
[1761286263140,2.81,192.91,192.83,2.76]
[1761286263340,8.75569527,192.9,192.83,2.76]
[1761286263639,8.75569527,192.89,192.83,2.76]
[1761286263834,4.89038132,192.88,192.83,2.76]
[1761286264038,2.81,192.91,192.83,2.76]
[1761286264240,11.40958191,192.9,192.83,2.76]
[1761286264538,8.59958191,192.89,192.83,2.76]
[1761286264738,2.81,192.9,192.83,2.76]
[1761286264939,11.37524811,192.89,192.85,2.76]
[1761286265240,2.81,192.89,192.85,2.76]
[1761286266042,2.81,192.89,192.86,2.76]
[1761286267148,2.81,192.92,192.86,2.76]
[1761286267348,2.81,192.9,192.86,2.76]
[1761286268447,2.81,192.89,192.86,2.76]
[1761286269551,2.81,192.89,192.85,43.14]
[1761286269941,2.81,192.88,192.85,43.14]
[1761286271246,2.81,192.88,192.85,45.9]
[1761286273948,4.78259865,192.94,192.87,2.76]
[1761286273949,3.83118686,192.91,192.87,2.76]
[1761286274154,3.83118686,192.93,192.87,2.76]
[1761286274356,6.64118686,192.94,192.87,2.76]
[1761286274556,3.83118686,192.93,192.87,2.76]
[1761286274758,6.64118686,192.93,192.87,2.76]
[1761286274951,2.81,192.93,192.87,2.76]
[1761286275352,2.81,192.91,192.81,2.76]
[1761286275648,2.81,192.89,192.83,2.76]
[1761286276250,2.81,192.89,192.85,2.76]
[1761286276652,2.81,192.89,192.86,43.14]
[1761286277652,2.81,192.89,192.85,2.76]
[1761286277852,2.81,192.89,192.86,43.14]
[1761286278253,2.81,192.89,192.85,2.76]
[1761286278448,10.68606213,192.92,192.86,43.14]
[1761286278653,6.64034054,192.91,192.88,2.76]
[1761286278849,6.8564872,192.94,192.88,2.76]
[1761286279154,4.78259865,192.97,192.88,2.76]
[1761286279155,2.81,192.92,192.88,2.76]
[1761286279357,2.81,192.91,192.88,45.9]
[1761286279559,2.81,192.91,192.88,43.14]
[1761286281265,2.81,192.91,192.86,2.76]
[1761286281471,2.81,192.91,192.88,2.76]
[1761286281656,3.83016331,192.92,192.89,2.76]
[1761286281859,6.64016331,192.93,192.89,2.76]
[1761286282159,6.64016331,192.92,192.89,2.76]
[1761286282372,2.81,192.92,192.89,2.76]
[1761286283166,6.64021664,192.92,192.89,2.76]
[1761286283368,2.81,192.92,192.89,2.76]
[1761286284460,2.81,192.92,192.88,43.14]
[1761286284666,2.81,192.92,192.88,45.9]
[1761286284866,2.81,192.92,192.88,2.76]
[1761286285063,2.81,192.92,192.88,45.9]
[1761286286155,2.81,192.92,192.88,48.2661808]
[1761286286862,2.81,192.92,192.89,43.14]
[1761286287064,2.81,192.92,192.89,45.9]
[1761286288162,6.83590116,192.95,192.9,2.69]
[1761286288362,6.61993157,192.94,192.9,2.69]
[1761286288564,2.79,192.94,192.9,2.69]
[1761286289273,2.79,192.94,192.91,2.62]
[1761286289465,6.62013945,192.94,192.91,2.62]
[1761286289671,2.79,192.94,192.9,43.14]
[1761286289865,2.79,192.94,192.91,2.62]
[1761286290172,3.83726732,192.94,192.91,2.62]
[1761286290371,2.64,192.93,192.9,45.76]
[1761286292971,2.64,192.93,192.9,2.62]
[1761286293270,2.64,192.93,192.91,43.14]
[1761286293668,2.64,192.93,192.9,45.76]
[1761286293864,2.64,192.93,192.83,2.62]
[1761286294064,6.47714383,192.92,192.87,2.62]
[1761286294272,2.64,192.92,192.88,43.12]
[1761286294466,2.64,192.92,192.87,2.62]
[1761286294666,6.47602115,192.91,192.84,4.9861808]
[1761286294876,13.19395929,192.94,192.84,4.9861808]
[1761286294877,2.64,192.89,192.86,2.62]
[1761286295264,2.64,192.89,192.86,45.74]
[1761286295666,2.64,192.89,192.86,2.62]
[1761286295866,2.64,192.89,192.86,45.74]
[1761286296067,6.59231669,192.92,192.86,43.12]
[1761286296268,6.34188349,192.97,192.86,43.12]
[1761286296269,6.59231669,192.91,192.87,2.62]
[1761286296475,6.68669801,192.94,192.88,2.62]
[1761286296668,3.95336036,192.93,192.88,2.62]
[1761286296867,6.59336036,192.92,192.88,2.62]
[1761286297067,3.95336036,192.91,192.88,2.62]
[1761286297372,2.64,192.92,192.88,2.62]
[1761286297671,2.64,192.92,192.87,2.3661808]
[1761286297871,2.64,192.9,192.86,43.12]
[1761286298173,2.64,192.88,192.86,43.12]
[1761286298469,6.68727262,192.92,192.86,45.74]
[1761286298674,2.64,192.9,192.87,2.62]
[1761286298865,3.95477717,192.89,192.87,2.62]
[1761286299068,2.64,192.9,192.87,2.62]
[1761286299371,3.95495314,192.89,192.87,2.62]
[1761286299582,2.64,192.9,192.87,2.62]
[1761286299872,3.95562912,192.89,192.87,45.74]
[1761286300168,2.64,192.9,192.87,45.74]
[1761286300373,3.95635387,192.89,192.87,45.74]
[1761286300569,2.64,192.9,192.87,45.74]
[1761286300771,3.95666613,192.89,192.87,45.74]
[1761286300974,2.64,192.9,192.87,45.74]
[1761286301176,3.95666613,192.89,192.87,45.74]
[1761286301475,2.64,192.9,192.87,45.74]
[1761286301780,3.95749803,192.89,192.87,45.74]
[1761286301974,2.64,192.9,192.87,45.74]
[1761286302174,3.95732559,192.89,192.87,45.74]
[1761286302375,2.64,192.9,192.87,45.76]
[1761286302575,3.95824856,192.89,192.87,45.76]
[1761286302777,2.64,192.9,192.87,45.76]
[1761286303079,3.95825151,192.89,192.87,2.62]
[1761286303275,2.64,192.89,192.87,45.76]
[1761286303575,2.64,192.89,192.84,2.3661808]
[1761286303877,2.64,192.89,192.86,2.62]
[1761286304174,2.64,192.87,192.84,4.9861808]
[1761286304374,2.64,192.87,192.85,43.14]
[1761286304875,2.64,192.87,192.86,1.51341809]
[1761286305176,6.59872289,192.87,192.86,1.51341809]
[1761286305378,3.95872289,192.87,192.86,4.13341809]
[1761286306278,3.95872289,192.87,192.86,2.62]
[1761286306474,3.95872289,192.87,192.86,1.51341809]
[1761286307977,3.95872289,192.87,192.86,44.65341809]
[1761286311290,3.95872289,192.87,192.86,47.27341809]
[1761286311477,4.78259865,192.92,192.87,2.62]
[1761286311681,2.64,192.92,192.91,1.51341809]
[1761286311873,6.59873177,192.92,192.91,1.51341809]
[1761286312486,3.95873177,192.92,192.91,1.51341809]
[1761286314391,6.59873177,192.92,192.91,1.51341809]
[1761286317287,10.64670574,192.92,192.91,1.51341809]
[1761286322095,6.59873177,192.92,192.91,1.51341809]
[1761286323102,3.95873177,192.92,192.91,1.51341809]
[1761286324002,6.78873177,192.92,192.91,1.51341809]
[1761286328610,6.78873177,192.92,192.89,43.12]
[1761286328810,3.95873177,192.91,192.89,45.83]
[1761286329015,2.83,192.92,192.9,1.51341809]
[1761286329306,3.96716197,192.91,192.9,1.51341809]
[1761286329504,6.79716197,192.91,192.9,1.51341809]
[1761286331714,3.96716197,192.91,192.9,1.51341809]
[1761286333115,3.96716197,192.91,192.9,4.22341809]
[1761286333518,3.96716197,192.91,192.9,47.34341809]
[1761286334314,3.96716197,192.91,192.9,4.22341809]
[1761286334512,3.96716197,192.91,192.9,47.34341809]
[1761286335209,4.05041187,192.94,192.91,2.71]
[1761286335409,2.83,192.95,192.93,4.22341809]
[1761286335715,2.83,192.95,192.93,1.51341809]
[1761286341822,2.83,192.95,192.93,4.22341809]
[1761286343420,2.83,192.95,192.93,1.51341809]
[1761286347330,2.83,192.95,192.81,15.54]
[1761286347331,2.83,192.93,192.83,1.51341809]
[1761286347527,2.83,192.9,192.86,2.71]
[1761286347721,2.83,192.88,192.86,2.71]
[1761286347918,3.93941663,192.87,192.86,2.71]
[1761286348122,2.83,192.88,192.85,4.14341809]
[1761286350330,2.83,192.88,192.85,2.63]
[1761286350931,3.92586817,192.87,192.84,44.63341809]
[1761286351137,2.83,192.87,192.84,45.73]
[1761286352026,6.75586817,192.87,192.84,2.63]
[1761286352232,2.83,192.87,192.84,45.75]
[1761286354631,3.92521018,192.89,192.85,2.76]
[1761286354835,3.92521018,192.88,192.85,2.76]
[1761286355036,2.85,192.89,192.85,2.76]
[1761286355236,3.92521018,192.88,192.85,2.76]
[1761286355938,6.77521018,192.88,192.85,2.76]
[1761286356140,2.85,192.88,192.85,2.76]
[1761286356830,6.77516881,192.88,192.85,2.76]
[1761286357030,2.85,192.88,192.77,2.76]
[1761286357233,2.85,192.86,192.79,2.76]
[1761286357429,3.92359341,192.85,192.79,2.76]
[1761286357626,2.85,192.86,192.8,4.27341809]
[1761286357830,6.77392996,192.85,192.81,2.76]
[1761286358040,2.85,192.85,192.81,2.76]
[1761286358938,6.77304006,192.85,192.83,1.51341809]
[1761286359139,2.85,192.85,192.83,1.51341809]
[1761286360242,6.77276513,192.85,192.83,4.27341809]
[1761286360437,2.85,192.85,192.83,4.27341809]
[1761286361737,2.85,192.85,192.79,2.76]
[1761286362043,2.85,192.85,192.83,1.51341809]
[1761286362634,6.77068556,192.85,192.83,1.51341809]